[Event "Titled Tuesday Blitz March 22 Late 2022"]
[White "Oro, Luis"]
[Black "Ardila, Oscar Humberto"]
[WhiteFideId "104094"]
[BlackFideId "4404742"]
[WhiteElo "2312"]
[BlackElo "1966"]
[Result "1-0"]
[Round "05"]
[TimeControl "180+1"]
[Date "2022.03.22"]
[WhiteClock "0:00:15"]
[BlackClock "0:00:07"]

1. e4 {[%clk 0:03:00]}  e5 {[%clk 0:02:59]} 2. Nf3 {[%clk 0:03:00]}  Nf6 {[%clk 0:02:51]} 3. Nxe5 {[%clk 0:03:00]}  d6 {[%clk 0:02:51]} 4. Nf3 {[%clk 0:03:00]}  Nxe4 {[%clk 0:02:52]} 5. Nc3 {[%clk 0:03:01]}  Nf6 {[%clk 0:02:52]} 6. Be2 {[%clk 0:02:56]}  Be7 {[%clk 0:02:53]} 7. O-O {[%clk 0:02:57]}  O-O {[%clk 0:02:54]} 8. d4 {[%clk 0:02:57]}  Nbd7 {[%clk 0:02:54]} 9. Re1 {[%clk 0:02:57]}  Re8 {[%clk 0:02:55]} 10. Bg5 {[%clk 0:02:57]}  Nf8 {[%clk 0:02:56]} 11. Bd3 {[%clk 0:02:57]}  Ne6 {[%clk 0:02:55]} 12. Be3 {[%clk 0:02:55]}  c6 {[%clk 0:02:53]} 13. h3 {[%clk 0:02:55]}  Bd7 {[%clk 0:02:53]} 14. Qd2 {[%clk 0:02:55]}  Nf8 {[%clk 0:02:53]} 15. Rad1 {[%clk 0:02:54]}  Ng6 {[%clk 0:02:53]} 16. Ne2 {[%clk 0:02:51]}  Nd5 {[%clk 0:02:52]} 17. Bg5 {[%clk 0:02:44]}  Bxg5 {[%clk 0:02:49]} 18. Nxg5 {[%clk 0:02:45]}  Qf6 {[%clk 0:02:47]} 19. Ne4 {[%clk 0:02:40]}  Qe7 {[%clk 0:02:43]} 20. N2g3 {[%clk 0:02:39]}  Rad8 {[%clk 0:02:34]} 21. c4 {[%clk 0:02:36]}  Nf6 {[%clk 0:02:33]} 22. Qb4 {[%clk 0:02:22]}  Bc8 {[%clk 0:01:41]} 23. c5 {[%clk 0:02:04]}  Nxe4 {[%clk 0:01:38]} 24. Nxe4 {[%clk 0:01:59]}  dxc5 {[%clk 0:01:38]} 25. dxc5 {[%clk 0:01:58]}  Qc7 {[%clk 0:01:18]} 26. Nd6 {[%clk 0:01:56]}  Rxe1+ {[%clk 0:01:12]} 27. Rxe1 {[%clk 0:01:56]}  b6 {[%clk 0:01:11]} 28. Bxg6 {[%clk 0:01:50]}  hxg6 {[%clk 0:01:11]} 29. cxb6 {[%clk 0:01:29]}  axb6 {[%clk 0:01:00]} 30. Nxc8 {[%clk 0:01:17]}  Rxc8 {[%clk 0:01:00]} 31. Re7 {[%clk 0:01:17]}  Qd8 {[%clk 0:00:57]} 32. Qe4 {[%clk 0:01:04]}  Qd1+ {[%clk 0:00:52]} 33. Kh2 {[%clk 0:01:03]}  Qd6+ {[%clk 0:00:52]} 34. g3 {[%clk 0:01:04]}  Kf8 {[%clk 0:00:39]} 35. Rb7 {[%clk 0:00:57]}  Re8 {[%clk 0:00:39]} 36. Qf3 {[%clk 0:00:55]}  f5 {[%clk 0:00:31]} 37. Rxb6 {[%clk 0:00:51]}  Re4 {[%clk 0:00:31]} 38. Kg2 {[%clk 0:00:47]}  Kg8 {[%clk 0:00:29]} 39. Rb3 {[%clk 0:00:42]}  Qe5 {[%clk 0:00:27]} 40. Rc3 {[%clk 0:00:41]}  c5 {[%clk 0:00:27]} 41. Qd3 {[%clk 0:00:41]}  Kh7 {[%clk 0:00:25]} 42. Qf3 {[%clk 0:00:35]}  Re2 {[%clk 0:00:23]} 43. a4 {[%clk 0:00:15]}  Rxb2 {[%clk 0:00:22]} 44. a5 {[%clk 0:00:16]}  Ra2 {[%clk 0:00:19]} 45. Re3 {[%clk 0:00:15]}  Qd4 {[%clk 0:00:17]} 46. h4 {[%clk 0:00:12]}  Rxa5 {[%clk 0:00:12]} 47. h5 {[%clk 0:00:13]}  Qf6 {[%clk 0:00:10]} 48. hxg6+ {[%clk 0:00:13]}  Qxg6 {[%clk 0:00:10]} 49. Re5 {[%clk 0:00:14]}  Ra2 {[%clk 0:00:05]} 50. Rxf5 {[%clk 0:00:13]}  c4 {[%clk 0:00:05]} 51. Rh5+ {[%clk 0:00:14]}  Kg8 {[%clk 0:00:05]} 52. Qd5+ {[%clk 0:00:14]}  Qf7 {[%clk 0:00:06]} 53. Rh8+ {[%clk 0:00:14]}  Kxh8 {[%clk 0:00:06]} 54. Qxf7 {[%clk 0:00:15]}  c3 {[%clk 0:00:07]} 55. Qxa2 {[%clk 0:00:15]} 1-0


[Site "https://www.chess.com"]

[Event "Titled Tuesday Blitz March 22 Late 2022"]
[White "Ottosen, David"]
[Black "Burke, Paul"]
[WhiteFideId "2603080"]
[BlackFideId "2605767"]
[WhiteElo "2114"]
[BlackElo "1914"]
[Result "0-1"]
[Round "05"]
[TimeControl "180+1"]
[Date "2022.03.22"]
[WhiteClock "0:01:15"]
[BlackClock "0:00:49"]

1. e4 {[%clk 0:02:54]}  e5 {[%clk 0:02:59]} 2. Nf3 {[%clk 0:02:52]}  Nc6 {[%clk 0:02:59]} 3. d4 {[%clk 0:02:53]}  exd4 {[%clk 0:02:58]} 4. c3 {[%clk 0:02:54]}  d5 {[%clk 0:02:58]} 5. exd5 {[%clk 0:02:55]}  Qxd5 {[%clk 0:02:57]} 6. cxd4 {[%clk 0:02:56]}  Nf6 {[%clk 0:02:56]} 7. Nc3 {[%clk 0:02:55]}  Bb4 {[%clk 0:02:55]} 8. Bd2 {[%clk 0:02:56]}  Qh5 {[%clk 0:02:54]} 9. Be2 {[%clk 0:02:56]}  Bg4 {[%clk 0:02:54]} 10. O-O {[%clk 0:02:55]}  O-O-O {[%clk 0:02:53]} 11. a3 {[%clk 0:02:55]}  Bd6 {[%clk 0:02:53]} 12. h3 {[%clk 0:02:52]}  Rhe8 {[%clk 0:02:43]} 13. Be3 {[%clk 0:02:29]}  Bxh3 {[%clk 0:02:25]} 14. gxh3 {[%clk 0:02:28]}  Qxh3 {[%clk 0:02:24]} 15. Re1 {[%clk 0:02:24]}  Ng4 {[%clk 0:02:17]} 16. Bb5 {[%clk 0:01:51]}  Bh2+ {[%clk 0:01:31]} 17. Nxh2 {[%clk 0:01:50]}  Nxh2 {[%clk 0:01:18]} 18. Bxc6 {[%clk 0:01:45]}  bxc6 {[%clk 0:01:16]} 19. f3 {[%clk 0:01:26]}  Qg3+ {[%clk 0:00:57]} 20. Kh1 {[%clk 0:01:23]}  Nxf3 {[%clk 0:00:50]} 21. Qe2 {[%clk 0:01:15]}  Qh3+ {[%clk 0:00:49]} 0-1


[Site "https://www.chess.com"]

[Event "Titled Tuesday Blitz March 22 Late 2022"]
[White "Papp, Levente"]
[Black "Moussard, Jules"]
[WhiteFideId "751243"]
[BlackFideId "642908"]
[WhiteElo "2308"]
[BlackElo "2557"]
[Result "0-1"]
[Round "05"]
[TimeControl "180+1"]
[Date "2022.03.22"]
[WhiteClock "0:00:03"]
[BlackClock "0:00:05"]

1. c4 {[%clk 0:03:00]}  e6 {[%clk 0:03:00]} 2. Nf3 {[%clk 0:02:58]}  Ne7 {[%clk 0:03:00]} 3. e4 {[%clk 0:02:54]}  g6 {[%clk 0:03:00]} 4. d4 {[%clk 0:02:52]}  Bg7 {[%clk 0:03:00]} 5. g3 {[%clk 0:02:52]}  O-O {[%clk 0:03:01]} 6. Bg2 {[%clk 0:02:52]}  f5 {[%clk 0:03:02]} 7. e5 {[%clk 0:02:43]}  b6 {[%clk 0:03:02]} 8. Nc3 {[%clk 0:02:40]}  Bb7 {[%clk 0:02:59]} 9. d5 {[%clk 0:02:32]}  a5 {[%clk 0:02:55]} 10. O-O {[%clk 0:02:28]}  Na6 {[%clk 0:02:55]} 11. Be3 {[%clk 0:02:25]}  h6 {[%clk 0:02:46]} 12. d6 {[%clk 0:02:07]}  cxd6 {[%clk 0:02:44]} 13. Qxd6 {[%clk 0:02:08]}  Nc8 {[%clk 0:02:18]} 14. Qd2 {[%clk 0:02:06]}  g5 {[%clk 0:02:17]} 15. Rfd1 {[%clk 0:01:47]}  Bc6 {[%clk 0:02:15]} 16. h4 {[%clk 0:01:43]}  f4 {[%clk 0:01:55]} 17. gxf4 {[%clk 0:01:42]}  gxf4 {[%clk 0:01:56]} 18. Bxf4 {[%clk 0:01:40]}  Qe8 {[%clk 0:01:54]} 19. Qe3 {[%clk 0:01:28]}  Qf7 {[%clk 0:01:49]} 20. Ne2 {[%clk 0:01:23]}  Ne7 {[%clk 0:01:43]} 21. Nfd4 {[%clk 0:01:16]}  Bxg2 {[%clk 0:01:40]} 22. Kxg2 {[%clk 0:01:17]}  Ng6 {[%clk 0:01:21]} 23. Bg3 {[%clk 0:01:16]}  d6 {[%clk 0:00:45]} 24. exd6 {[%clk 0:01:06]}  e5 {[%clk 0:00:44]} 25. Nb5 {[%clk 0:00:47]}  Qxc4 {[%clk 0:00:28]} 26. Qb3 {[%clk 0:00:47]}  Qxb3 {[%clk 0:00:28]} 27. axb3 {[%clk 0:00:48]}  Nc5 {[%clk 0:00:24]} 28. Ra3 {[%clk 0:00:28]}  Rad8 {[%clk 0:00:23]} 29. h5 {[%clk 0:00:22]}  Nf4+ {[%clk 0:00:21]} 30. Bxf4 {[%clk 0:00:22]}  exf4 {[%clk 0:00:22]} 31. Kf3 {[%clk 0:00:23]}  Bxb2 {[%clk 0:00:16]} 32. Ra2 {[%clk 0:00:24]}  Bg7 {[%clk 0:00:14]} 33. Ned4 {[%clk 0:00:18]}  Rfe8 {[%clk 0:00:10]} 34. Nf5 {[%clk 0:00:17]}  Bf8 {[%clk 0:00:09]} 35. Rg1+ {[%clk 0:00:14]}  Kf7 {[%clk 0:00:05]} 36. Rd2 {[%clk 0:00:11]}  Nxb3 {[%clk 0:00:04]} 37. Rd5 {[%clk 0:00:11]}  Nc5 {[%clk 0:00:03]} 38. Rg6 {[%clk 0:00:10]}  Re6 {[%clk 0:00:03]} 39. Rxe6 {[%clk 0:00:07]}  Kxe6 {[%clk 0:00:04]} 40. Nc7+ {[%clk 0:00:07]}  Kd7 {[%clk 0:00:05]} 41. Kxf4 {[%clk 0:00:07]}  a4 {[%clk 0:00:02]} 42. Rd1 {[%clk 0:00:05]}  a3 {[%clk 0:00:02]} 43. Nd5 {[%clk 0:00:04]}  a2 {[%clk 0:00:01]} 44. Nxb6+ {[%clk 0:00:04]}  Kc6 {[%clk 0:00:02]} 45. Nc4 {[%clk 0:00:04]}  Nb3 {[%clk 0:00:03]} 46. Na5+ {[%clk 0:00:02]}  Nxa5 {[%clk 0:00:03]} 47. Ra1 {[%clk 0:00:03]}  Bxd6+ {[%clk 0:00:03]} 48. Nxd6 {[%clk 0:00:03]}  Rxd6 {[%clk 0:00:04]} 49. Rxa2 {[%clk 0:00:04]}  Nb7 {[%clk 0:00:03]} 50. Ra6+ {[%clk 0:00:04]}  Kd7 {[%clk 0:00:04]} 51. Ra7 {[%clk 0:00:03]}  Rb6 {[%clk 0:00:04]} 52. Kf5 {[%clk 0:00:02]}  Ke7 {[%clk 0:00:05]} 53. f4 {[%clk 0:00:02]}  Kf7 {[%clk 0:00:05]} 54. Ra8 {[%clk 0:00:02]}  Rb5+ {[%clk 0:00:05]} 55. Kg4 {[%clk 0:00:02]}  Nd6 {[%clk 0:00:06]} 56. Ra7+ {[%clk 0:00:03]}  Kf6 {[%clk 0:00:06]} 57. Ra6 {[%clk 0:00:04]}  Rd5 {[%clk 0:00:06]} 58. Ra7 {[%clk 0:00:04]}  Nf5 {[%clk 0:00:04]} 59. Ra6+ {[%clk 0:00:04]}  Rd6 {[%clk 0:00:04]} 60. Ra8 {[%clk 0:00:03]}  Ne3+ {[%clk 0:00:04]} 61. Kf3 {[%clk 0:00:03]}  Nf5 {[%clk 0:00:04]} 62. Rf8+ {[%clk 0:00:02]}  Ke6 {[%clk 0:00:04]} 63. Kg4 {[%clk 0:00:03]}  Ne3+ {[%clk 0:00:04]} 64. Kf3 {[%clk 0:00:03]}  Nf5 {[%clk 0:00:04]} 65. Kg4 {[%clk 0:00:03]}  Ne7 {[%clk 0:00:03]} 66. Rh8 {[%clk 0:00:03]}  Kf7 {[%clk 0:00:03]} 67. Rh7+ {[%clk 0:00:02]}  Kf8 {[%clk 0:00:04]} 68. Rh8+ {[%clk 0:00:03]}  Ng8 {[%clk 0:00:04]} 69. Rh7 {[%clk 0:00:03]}  Nf6+ {[%clk 0:00:05]} 0-1


[Site "https://www.chess.com"]

[Event "Titled Tuesday Blitz March 22 Late 2022"]
[White "Paszewski, Mateusz"]
[Black "Tari, Aryan"]
[WhiteFideId "1141058"]
[BlackFideId "1510045"]
[WhiteElo "2102"]
[BlackElo "2567"]
[Result "0-1"]
[Round "05"]
[TimeControl "180+1"]
[Date "2022.03.22"]
[WhiteClock "0:00:07"]
[BlackClock "0:00:07"]

1. e4 {[%clk 0:03:00]}  c6 {[%clk 0:02:59]} 2. d4 {[%clk 0:02:58]}  d5 {[%clk 0:03:00]} 3. e5 {[%clk 0:02:57]}  Bf5 {[%clk 0:02:59]} 4. Nf3 {[%clk 0:02:56]}  e6 {[%clk 0:02:58]} 5. Be2 {[%clk 0:02:55]}  Ne7 {[%clk 0:02:58]} 6. O-O {[%clk 0:02:54]}  c5 {[%clk 0:02:59]} 7. c4 {[%clk 0:02:52]}  Nbc6 {[%clk 0:02:56]} 8. dxc5 {[%clk 0:02:48]}  d4 {[%clk 0:02:56]} 9. Bd3 {[%clk 0:02:39]}  Bxd3 {[%clk 0:02:51]} 10. Qxd3 {[%clk 0:02:40]}  Ng6 {[%clk 0:02:51]} 11. Qe4 {[%clk 0:02:39]}  Bxc5 {[%clk 0:02:51]} 12. h4 {[%clk 0:02:32]}  h6 {[%clk 0:02:46]} 13. h5 {[%clk 0:02:31]}  Nge7 {[%clk 0:02:46]} 14. Ne1 {[%clk 0:02:31]}  Nf5 {[%clk 0:02:28]} 15. Nd3 {[%clk 0:02:30]}  Bb6 {[%clk 0:02:16]} 16. Nd2 {[%clk 0:02:29]}  O-O {[%clk 0:02:13]} 17. Nf3 {[%clk 0:02:28]}  a5 {[%clk 0:01:55]} 18. Bd2 {[%clk 0:02:16]}  Qe7 {[%clk 0:01:53]} 19. b3 {[%clk 0:01:32]}  Rfd8 {[%clk 0:01:50]} 20. a3 {[%clk 0:01:27]}  Rd7 {[%clk 0:01:41]} 21. b4 {[%clk 0:01:25]}  axb4 {[%clk 0:00:19]} 22. axb4 {[%clk 0:01:26]}  Qf8 {[%clk 0:00:12]} 23. g4 {[%clk 0:01:24]}  Ne3 {[%clk 0:00:01]} 24. fxe3 {[%clk 0:00:49]}  dxe3 {[%clk 0:00:02]} 25. Bxe3 {[%clk 0:00:50]}  Bxe3+ {[%clk 0:00:03]} 26. Qxe3 {[%clk 0:00:50]}  Rad8 {[%clk 0:00:01]} 27. Nc5 {[%clk 0:00:47]}  Rc7 {[%clk 0:00:02]} 28. b5 {[%clk 0:00:29]}  Nb4 {[%clk 0:00:02]} 29. Ne4 {[%clk 0:00:24]}  Nc2 {[%clk 0:00:03]} 30. Qb6 {[%clk 0:00:21]}  Rxc4 {[%clk 0:00:03]} 31. Nf2 {[%clk 0:00:17]}  Nxa1 {[%clk 0:00:02]} 32. Rxa1 {[%clk 0:00:17]}  Rd7 {[%clk 0:00:02]} 33. Kg2 {[%clk 0:00:14]}  Qc5 {[%clk 0:00:03]} 34. Ra8+ {[%clk 0:00:12]}  Kh7 {[%clk 0:00:03]} 35. Qxc5 {[%clk 0:00:11]}  Rxc5 {[%clk 0:00:04]} 36. g5 {[%clk 0:00:12]}  Rxb5 {[%clk 0:00:03]} 37. Ng4 {[%clk 0:00:09]}  Rb4 {[%clk 0:00:02]} 38. Kg3 {[%clk 0:00:06]}  Rd3 {[%clk 0:00:03]} 39. gxh6 {[%clk 0:00:05]}  Rbb3 {[%clk 0:00:04]} 40. Nh2 {[%clk 0:00:04]}  gxh6 {[%clk 0:00:03]} 41. Kf4 {[%clk 0:00:04]}  Rb4+ {[%clk 0:00:03]} 42. Kg3 {[%clk 0:00:05]}  Kg7 {[%clk 0:00:04]} 43. Ng4 {[%clk 0:00:03]}  Rbb3 {[%clk 0:00:04]} 44. Nf6 {[%clk 0:00:02]}  Rxf3+ {[%clk 0:00:04]} 45. Kg2 {[%clk 0:00:03]}  Rxf6 {[%clk 0:00:05]} 46. exf6+ {[%clk 0:00:04]}  Kxf6 {[%clk 0:00:06]} 47. Rb8 {[%clk 0:00:05]}  Kg5 {[%clk 0:00:06]} 48. Rf8 {[%clk 0:00:05]}  f5 {[%clk 0:00:06]} 49. Re8 {[%clk 0:00:06]}  Re3 {[%clk 0:00:06]} 50. Rg8+ {[%clk 0:00:06]}  Kxh5 {[%clk 0:00:07]} 51. Rb8 {[%clk 0:00:07]} 0-1


[Site "https://www.chess.com"]

[Event "Titled Tuesday Blitz March 22 Late 2022"]
[White "Reprintsev, Alexander"]
[Black "Fier, Alexandr"]
[WhiteFideId "14100541"]
[BlackFideId "2107139"]
[WhiteElo "2108"]
[BlackElo "2571"]
[Result "1-0"]
[Round "05"]
[TimeControl "180+1"]
[Date "2022.03.22"]
[WhiteClock "0:01:53"]
[BlackClock "0:02:21"]

1. e4 {[%clk 0:02:54]}  Nf6 {[%clk 0:02:59]} 2. e5 {[%clk 0:02:53]}  Ng8 {[%clk 0:02:59]} 3. d4 {[%clk 0:02:51]}  d6 {[%clk 0:02:59]} 4. Nf3 {[%clk 0:02:50]}  Nc6 {[%clk 0:03:00]} 5. Bb5 {[%clk 0:02:48]}  Bd7 {[%clk 0:02:59]} 6. Qe2 {[%clk 0:02:43]}  e6 {[%clk 0:02:59]} 7. O-O {[%clk 0:02:42]}  Be7 {[%clk 0:02:58]} 8. Nc3 {[%clk 0:02:37]}  Nh6 {[%clk 0:02:58]} 9. exd6 {[%clk 0:02:29]}  cxd6 {[%clk 0:02:58]} 10. d5 {[%clk 0:02:21]}  exd5 {[%clk 0:02:52]} 11. Bxh6 {[%clk 0:02:20]}  gxh6 {[%clk 0:02:52]} 12. Nxd5 {[%clk 0:02:18]}  Be6 {[%clk 0:02:52]} 13. Nf4 {[%clk 0:02:14]}  Qd7 {[%clk 0:02:52]} 14. Rfe1 {[%clk 0:02:12]}  a6 {[%clk 0:02:44]} 15. Bxc6 {[%clk 0:02:12]}  bxc6 {[%clk 0:02:44]} 16. Nd4 {[%clk 0:02:10]}  Bg4 {[%clk 0:02:33]} 17. f3 {[%clk 0:02:04]}  Be6 {[%clk 0:02:31]} 18. Nfxe6 {[%clk 0:02:03]}  fxe6 {[%clk 0:02:31]} 19. Nxe6 {[%clk 0:02:03]}  Kf7 {[%clk 0:02:32]} 20. f4 {[%clk 0:01:58]}  Bf6 {[%clk 0:02:20]} 21. Qh5+ {[%clk 0:01:57]}  Kg8 {[%clk 0:02:21]} 22. Re3 {[%clk 0:01:53]} 1-0


[Site "https://www.chess.com"]

[Event "Titled Tuesday Blitz March 22 Late 2022"]
[White "Rosen, Eric"]
[Black "Marcziter, Dmitrii"]
[WhiteFideId "2032562"]
[BlackFideId "13900765"]
[WhiteElo "2362"]
[BlackElo "2155"]
[Result "1-0"]
[Round "05"]
[TimeControl "180+1"]
[Date "2022.03.22"]
[WhiteClock "0:00:16"]
[BlackClock "0:01:48"]

1. d4 {[%clk 0:03:00]}  Nf6 {[%clk 0:02:59]} 2. Bf4 {[%clk 0:03:00]}  d5 {[%clk 0:02:57]} 3. e3 {[%clk 0:03:01]}  c5 {[%clk 0:02:58]} 4. Nf3 {[%clk 0:03:00]}  Qb6 {[%clk 0:02:57]} 5. Nc3 {[%clk 0:02:57]}  cxd4 {[%clk 0:02:52]} 6. exd4 {[%clk 0:02:56]}  Bg4 {[%clk 0:02:51]} 7. Nb5 {[%clk 0:02:43]}  Na6 {[%clk 0:02:48]} 8. c3 {[%clk 0:02:42]}  e6 {[%clk 0:02:45]} 9. Qa4 {[%clk 0:02:33]}  O-O-O {[%clk 0:02:33]} 10. Ne5 {[%clk 0:01:59]}  Bh5 {[%clk 0:02:32]} 11. f3 {[%clk 0:01:11]}  Ne8 {[%clk 0:02:30]} 12. c4 {[%clk 0:00:37]}  Bb4+ {[%clk 0:02:27]} 13. Kf2 {[%clk 0:00:32]}  f6 {[%clk 0:02:18]} 14. c5 {[%clk 0:00:29]}  Nxc5 {[%clk 0:01:57]} 15. Nxa7+ {[%clk 0:00:29]}  Kb8 {[%clk 0:01:56]} 16. Nd7+ {[%clk 0:00:17]}  Ka8 {[%clk 0:01:48]} 17. Nxb6# {[%clk 0:00:16]} 1-0


[Site "https://www.chess.com"]

[Event "Titled Tuesday Blitz March 22 Late 2022"]
[White "Rozman, Levy"]
[Black "Martinez Alcantara, Jose Eduardo"]
[WhiteFideId "2039877"]
[BlackFideId "3805662"]
[WhiteElo "2376"]
[BlackElo "2690"]
[Result "0-1"]
[Round "05"]
[TimeControl "180+1"]
[Date "2022.03.22"]
[WhiteClock "0:00:02"]
[BlackClock "0:00:05"]

1. d4 {[%clk 0:02:56]}  Nf6 {[%clk 0:02:59]} 2. Bg5 {[%clk 0:02:48]}  Ne4 {[%clk 0:02:54]} 3. h4 {[%clk 0:02:46]}  d5 {[%clk 0:02:47]} 4. e3 {[%clk 0:02:45]}  h6 {[%clk 0:02:31]} 5. Bf4 {[%clk 0:02:45]}  e6 {[%clk 0:02:31]} 6. Bd3 {[%clk 0:02:43]}  Nf6 {[%clk 0:02:18]} 7. Nd2 {[%clk 0:02:42]}  Bd6 {[%clk 0:02:18]} 8. Qf3 {[%clk 0:02:33]}  Qe7 {[%clk 0:02:11]} 9. Bxd6 {[%clk 0:02:17]}  cxd6 {[%clk 0:02:10]} 10. Ne2 {[%clk 0:02:14]}  e5 {[%clk 0:02:10]} 11. Qg3 {[%clk 0:01:41]}  Nh5 {[%clk 0:02:05]} 12. Qf3 {[%clk 0:01:39]}  Nf6 {[%clk 0:02:06]} 13. Qg3 {[%clk 0:01:39]}  O-O {[%clk 0:02:03]} 14. O-O-O {[%clk 0:01:27]}  Nc6 {[%clk 0:02:02]} 15. h5 {[%clk 0:01:17]}  Nb4 {[%clk 0:01:59]} 16. a3 {[%clk 0:01:06]}  Nxd3+ {[%clk 0:01:56]} 17. cxd3 {[%clk 0:01:07]}  Bf5 {[%clk 0:01:55]} 18. Nf3 {[%clk 0:00:54]}  e4 {[%clk 0:01:51]} 19. Nh4 {[%clk 0:00:52]}  Bh7 {[%clk 0:01:49]} 20. Nf4 {[%clk 0:00:48]}  exd3 {[%clk 0:01:45]} 21. Nhg6 {[%clk 0:00:48]}  Rfc8+ {[%clk 0:01:44]} 22. Kb1 {[%clk 0:00:47]}  Qe8 {[%clk 0:01:13]} 23. f3 {[%clk 0:00:35]}  Nxh5 {[%clk 0:00:51]} 24. Rxh5 {[%clk 0:00:25]}  Bxg6 {[%clk 0:00:50]} 25. Nxg6 {[%clk 0:00:13]}  fxg6 {[%clk 0:00:51]} 26. Rxd5 {[%clk 0:00:13]}  Qa4 {[%clk 0:00:34]} 27. Rd2 {[%clk 0:00:08]}  Qc4 {[%clk 0:00:34]} 28. Rxd6 {[%clk 0:00:03]}  Qc1+ {[%clk 0:00:22]} 29. Ka2 {[%clk 0:00:03]}  Qxd2 {[%clk 0:00:13]} 30. Rxg6 {[%clk 0:00:03]}  Qxe3 {[%clk 0:00:08]} 31. Rxg7+ {[%clk 0:00:02]}  Kh8 {[%clk 0:00:09]} 32. Rg6 {[%clk 0:00:02]}  Rc6 {[%clk 0:00:07]} 33. Rg4 {[%clk 0:00:02]}  Qe6+ {[%clk 0:00:07]} 34. d5 {[%clk 0:00:02]}  Qxd5+ {[%clk 0:00:07]} 35. Kb1 {[%clk 0:00:02]}  d2 {[%clk 0:00:05]} 0-1


[Site "https://www.chess.com"]

[Event "Titled Tuesday Blitz March 22 Late 2022"]
[White "Rudykh, Stepan"]
[Black "Sarkar, Justin"]
[WhiteFideId "4180321"]
[BlackFideId "2010011"]
[WhiteElo "2136"]
[BlackElo "2038"]
[Result "1/2-1/2"]
[Round "05"]
[TimeControl "180+1"]
[Date "2022.03.22"]
[WhiteClock "0:00:51"]
[BlackClock "0:00:03"]

1. e4 {[%clk 0:02:49]}  e5 {[%clk 0:02:56]} 2. Nf3 {[%clk 0:02:50]}  Nc6 {[%clk 0:02:55]} 3. Bb5 {[%clk 0:02:50]}  a6 {[%clk 0:02:54]} 4. Ba4 {[%clk 0:02:51]}  Nf6 {[%clk 0:02:54]} 5. d4 {[%clk 0:02:52]}  exd4 {[%clk 0:02:50]} 6. O-O {[%clk 0:02:52]}  Be7 {[%clk 0:02:50]} 7. Re1 {[%clk 0:02:51]}  b5 {[%clk 0:02:39]} 8. Bb3 {[%clk 0:02:50]}  d6 {[%clk 0:02:37]} 9. Bd5 {[%clk 0:02:48]}  Nxd5 {[%clk 0:02:35]} 10. exd5 {[%clk 0:02:49]}  Ne5 {[%clk 0:02:27]} 11. Nxd4 {[%clk 0:02:46]}  O-O {[%clk 0:01:32]} 12. a4 {[%clk 0:02:46]}  Bg4 {[%clk 0:01:06]} 13. f3 {[%clk 0:02:46]}  Bd7 {[%clk 0:01:05]} 14. Nc3 {[%clk 0:02:37]}  b4 {[%clk 0:00:45]} 15. Nce2 {[%clk 0:02:26]}  Bf6 {[%clk 0:00:38]} 16. f4 {[%clk 0:02:15]}  Nc4 {[%clk 0:00:31]} 17. Qd3 {[%clk 0:02:13]}  Nb6 {[%clk 0:00:28]} 18. c4 {[%clk 0:01:57]}  bxc3 {[%clk 0:00:26]} 19. Nxc3 {[%clk 0:01:57]}  a5 {[%clk 0:00:14]} 20. Be3 {[%clk 0:01:48]}  Qc8 {[%clk 0:00:14]} 21. Rac1 {[%clk 0:01:45]}  Qb7 {[%clk 0:00:13]} 22. Ncb5 {[%clk 0:01:39]}  Nxd5 {[%clk 0:00:11]} 23. Bf2 {[%clk 0:01:32]}  Nxf4 {[%clk 0:00:11]} 24. Qg3 {[%clk 0:01:30]}  Be5 {[%clk 0:00:10]} 25. Rxc7 {[%clk 0:01:23]}  Qd5 {[%clk 0:00:06]} 26. Qf3 {[%clk 0:01:18]}  Qxf3 {[%clk 0:00:03]} 27. Nxf3 {[%clk 0:01:19]}  Bxb5 {[%clk 0:00:03]} 28. Nxe5 {[%clk 0:01:14]}  dxe5 {[%clk 0:00:03]} 29. axb5 {[%clk 0:01:13]}  Nd3 {[%clk 0:00:03]} 30. Re3 {[%clk 0:01:12]}  Nxf2 {[%clk 0:00:02]} 31. Kxf2 {[%clk 0:01:13]}  f6 {[%clk 0:00:02]} 32. b6 {[%clk 0:01:11]}  Rab8 {[%clk 0:00:02]} 33. b7 {[%clk 0:01:11]}  Rf7 {[%clk 0:00:02]} 34. Rc8+ {[%clk 0:01:08]}  Rf8 {[%clk 0:00:03]} 35. Rc7 {[%clk 0:01:08]}  Rf7 {[%clk 0:00:02]} 36. Rec3 {[%clk 0:01:05]}  Rxb7 {[%clk 0:00:02]} 37. Rc8+ {[%clk 0:01:02]}  Rf8 {[%clk 0:00:02]} 38. b3 {[%clk 0:01:00]}  Rxc8 {[%clk 0:00:02]} 39. Rxc8+ {[%clk 0:01:01]}  Kf7 {[%clk 0:00:02]} 40. Ra8 {[%clk 0:00:59]}  Rxb3 {[%clk 0:00:02]} 41. Rxa5 {[%clk 0:01:00]}  Rb2+ {[%clk 0:00:02]} 42. Kf3 {[%clk 0:01:00]}  h5 {[%clk 0:00:03]} 43. Ra7+ {[%clk 0:00:59]}  Kg6 {[%clk 0:00:03]} 44. h3 {[%clk 0:00:59]}  Rb3+ {[%clk 0:00:03]} 45. Kf2 {[%clk 0:00:59]}  h4 {[%clk 0:00:03]} 46. Ra8 {[%clk 0:00:59]}  Kh6 {[%clk 0:00:03]} 47. Rh8+ {[%clk 0:00:58]}  Kg5 {[%clk 0:00:04]} 48. Rg8 {[%clk 0:00:58]}  g6 {[%clk 0:00:04]} 49. Rh8 {[%clk 0:00:59]}  Rb2+ {[%clk 0:00:04]} 50. Kf1 {[%clk 0:00:59]}  f5 {[%clk 0:00:05]} 51. Rg8 {[%clk 0:00:59]}  Rb6 {[%clk 0:00:05]} 52. Re8 {[%clk 0:00:59]}  Kf4 {[%clk 0:00:05]} 53. Rh8 {[%clk 0:00:59]}  g5 {[%clk 0:00:04]} 54. Ra8 {[%clk 0:00:59]}  e4 {[%clk 0:00:04]} 55. Ra4 {[%clk 0:01:00]}  Rb1+ {[%clk 0:00:04]} 56. Kf2 {[%clk 0:00:59]}  Rb2+ {[%clk 0:00:04]} 57. Kf1 {[%clk 0:01:00]}  Ke5 {[%clk 0:00:04]} 58. Ra5+ {[%clk 0:00:59]}  Kf4 {[%clk 0:00:04]} 59. Ra4 {[%clk 0:00:59]}  Rc2 {[%clk 0:00:04]} 60. Rb4 {[%clk 0:00:59]}  Rd2 {[%clk 0:00:04]} 61. Ra4 {[%clk 0:00:58]}  Kg3 {[%clk 0:00:04]} 62. Ra3+ {[%clk 0:00:58]}  Rd3 {[%clk 0:00:04]} 63. Ra5 {[%clk 0:00:57]}  f4 {[%clk 0:00:03]} 64. Rxg5+ {[%clk 0:00:57]}  Kh2 {[%clk 0:00:04]} 65. Rg4 {[%clk 0:00:56]}  Rd2 {[%clk 0:00:03]} 66. Rxh4 {[%clk 0:00:55]}  Rxg2 {[%clk 0:00:03]} 67. Rxf4 {[%clk 0:00:56]}  e3 {[%clk 0:00:03]} 68. h4 {[%clk 0:00:55]}  e2+ {[%clk 0:00:02]} 69. Ke1 {[%clk 0:00:55]}  Kg3 {[%clk 0:00:02]} 70. Re4 {[%clk 0:00:52]}  Rh2 {[%clk 0:00:03]} 71. Rxe2 {[%clk 0:00:51]}  Rxe2+ {[%clk 0:00:03]} 72. Kxe2 {[%clk 0:00:51]}  Kg4 {[%clk 0:00:03]} 1/2-1/2


[Site "https://www.chess.com"]